fUSD/lending_fUSD_20240212
["ID","MTS","AMOUNT","RATE_DAILY","PERIOD"]
[313768966,1707706233249,-933.70666071,0.00022899,2]
[313768967,1707706233260,-334.50747262,0.00022899,2]
[313768968,1707706233307,-412.73199822,0.00022899,2]
[313768969,1707706233379,-3864.80905692,0.00022899,2]
[313768970,1707706234229,-261.4999963,0.00022899,2]
[313768971,1707706234296,-320.54382393,0.00022899,2]
[313768972,1707706234313,-334.18590284,0.00022899,2]
[313768973,1707706234329,-2328.9264946,0.00022899,2]
[313768974,1707706234345,-442.76851,0.00022899,2]
[313769006,1707706239845,-904.21,0.00022899,2]
[313769007,1707706240046,-9683.25177761,0.00022899,2]
[313769022,1707706245345,-35052.09710623,0.00022899,2]
[313769023,1707706245358,-1146.37024205,0.000229,2]
[313769024,1707706245367,-459.3079,0.000229,2]
[313769025,1707706245376,-4938.18397356,0.0002299,3]
[313769026,1707706245386,-5250.0,0.0002299,4]
[313769027,1707706245395,-2325.41783276,0.0002299,5]
[313769042,1707706245754,-2924.58216724,0.0002299,5]
[313769043,1707706245763,-499.99,0.0002299,2]
[313769044,1707706245772,-150.99,0.0002299,2]
[313769045,1707706245782,-257.30772204,0.0002299,3]
[313769046,1707706245791,-183.57059808,0.00022998,2]
[313769047,1707706245801,-620.4719683,0.00022998,3]
[313769048,1707706245810,-156.32270844,0.00022998,2]
[313769049,1707706245819,-151.0212,0.00022998,3]
[313769050,1707706245829,-151.0212,0.00022998,3]
[313769051,1707706245838,-217.81690635,0.00022998,3]
[313769052,1707706245847,-2506.0646519,0.00022998,2]
[313769053,1707706245857,-700.73500089,0.00022998,2]
[313769054,1707706245866,-3489.0140493,0.00022998,2]
[313769056,1707706245875,-25435.2599306,0.00022998,2]
[313769058,1707706245884,-74467.75643221,0.00022999,2]
[313769061,1707706245894,-152.30276642,0.00022999,2]
[313769062,1707706245904,-847.80328214,0.00022999,2]
[313769063,1707706245913,-1006.0055,0.00022999,2]
[313769064,1707706245923,-127792.56224351,0.00023,2]
[313769066,1707706245933,-24789.40167258,0.00023,2]
[313769068,1707706245970,-383.4045,0.00023,2]
[313769069,1707706245981,-365.2684,0.00023,2]
[313769103,1707706246487,-1071.6,0.00023,2]
[313769105,1707706246499,-446.565,0.00023,2]
[313769112,1707706246551,-9635.711,0.00023,2]
[313769114,1707706538274,268.89,0.00022257,2]
[313769115,1707706659831,150.05,0.00022171,10]
[313769116,1707706670039,169.65,0.00020204,2]
[313769117,1707706800188,5518.0,0.000221,2]
[313769118,1707706810712,209.92,0.00022259,2]
[313769119,1707706998585,224.07,0.0002214,2]
[313769120,1707707143698,161.16,0.00020248,2]
[313769121,1707707252723,150.05,0.00022156,10]
[313769141,1707707433762,-818.10924833,0.000225,2]
[313769142,1707707434065,209.0,0.00021998,2]
[313769143,1707707434105,-181.89075167,0.000225,2]
[313769145,1707707434115,-121.08384557,0.000225,2]
[313769147,1707707434127,-1498.94636376,0.000225,2]
[313769156,1707707434197,-951.75045202,0.000225,2]
[313769158,1707707434209,-519.80629185,0.000225,2]
[313769161,1707707434221,-333.4130468,0.000225,2]
[313769163,1707707434230,-161.16,0.00022512,2]
[313769164,1707707434239,-4.59229577,0.00022528,2]
[313769165,1707707434251,-827.46770423,0.00022528,2]
[313769166,1707707434261,-156.5113924,0.00022707,2]
[313769167,1707707434271,-225.61750841,0.00022768,4]
[313769168,1707707434280,-264.0,0.0002277,2]
[313769169,1707707434289,-7941.07176321,0.000228,2]
[313769170,1707707434298,-165.45,0.00022807,2]
[313769171,1707707434312,-202.103998,0.00022816,2]
[313769172,1707707434322,-800.0,0.00022816,2]
[313769173,1707707434331,-150.05,0.00022879,10]
[313769174,1707707434340,-15668.7517,0.00022899,2]
[313769175,1707707434349,-6613.4356,0.00022899,2]
[313769176,1707707434358,-1610.40205755,0.000229,2]
[313769177,1707707434368,-5000.0,0.000229,2]
[313769178,1707707434377,-150.0,0.000229,2]
[313769179,1707707434386,-1902.1023,0.000229,2]
[313769180,1707707434396,-1848.31603567,0.000229,2]
[313769181,1707707434405,-300.0,0.000229,2]
[313769182,1707707434414,-199.12839341,0.00022986,3]
[313769183,1707707434424,-432.86522005,0.00022986,2]
[313769184,1707707434437,-289.69215951,0.00022997,2]
[313769185,1707707434446,-279.55485018,0.00022997,2]
[313769186,1707707434456,-1277.88810421,0.00022998,2]
[313769187,1707707434466,-298.39343302,0.00022998,2]
[313769188,1707707434476,-155.61414702,0.00022998,2]
[313769189,1707707434485,-31477.12091503,0.00022998,2]
[313769190,1707707434495,-708.35939181,0.00022998,2]
[313769191,1707707434504,-211.59029001,0.00022998,3]
[313769192,1707707434514,-62004.7774081,0.00022998,2]
[313769193,1707707434527,-1236.7507441,0.00022998,2]
[313769194,1707707434536,-3999.3603094,0.00022998,2]
[313769195,1707707434546,-1714.4600347,0.00022998,2]
[313769196,1707707434555,-31492.706504,0.00022998,2]
[313769197,1707707434566,-143403.87697827,0.00022999,2]
[313769198,1707707434575,-847.80328214,0.00022999,2]
[313769199,1707707434584,-1000.0,0.00022999,2]
[313769200,1707707434594,-1000.0,0.00022999,2]
[313769201,1707707434607,-1000.0,0.00022999,2]
[313769202,1707707434618,-150.0,0.00022999,2]
[313769203,1707707434627,-150.0,0.00022999,2]
[313769204,1707707434637,-150.0,0.00022999,2]
[313769205,1707707434646,-150.0,0.00022999,2]
[313769206,1707707434655,-150.0,0.00022999,2]
[313769207,1707707434665,-150.0,0.00022999,2]
[313769208,1707707434674,-63896.28112175,0.00023,2]
[313769209,1707707434684,-12085.95680166,0.00023,2]
[313769210,1707707434699,-577.5783648,0.00023,2]
[313769211,1707707434727,-472.96270286,0.00023,2]
[313769212,1707707434738,-391.9015,0.00023,2]
[313769213,1707707434750,-6004.13120219,0.00023,2]
[313769214,1707707434761,-1270.1200964,0.00023,2]
[313769215,1707707434773,-411.2067431,0.00023,2]
[313769216,1707707434801,-1065.44,0.00023,2]
[313769217,1707707434813,-1964.1773477,0.00023,2]
[313769225,1707707440945,-405.80371586,0.00022999,2]
[313769252,1707707442640,-150.0,0.00022738,2]
[313769254,1707707442650,-150.0,0.00022799,2]
[313769256,1707707442659,-150.0,0.00022816,2]
[313769258,1707707442668,-83.0,0.0002286,2]
[313769260,1707707442680,-67.0,0.0002286,2]
[313769262,1707707442690,-313.28624573,0.00022873,2]
[313769264,1707707442700,-191.62814281,0.00022895,2]
[313769266,1707707442710,-300.69901926,0.00022999,2]
[313769268,1707707442719,-234.39107871,0.00023,3]
[313769270,1707707442728,-212.32100042,0.00023,3]
[313769272,1707707442737,-947.31901524,0.00023,2]
[313769275,1707707442754,-22954.73206285,0.00023,2]
[313769279,1707707442783,-754.68807512,0.00023,2]
[313769283,1707707442825,-500.0,0.00023,2]
[313769285,1707707442853,-256.81548211,0.00023,2]
[313769288,1707707442877,-3589.61915334,0.00023,2]
[313769295,1707707442921,-362.39861321,0.00023,2]
[313769365,1707707445860,-4171.85161909,0.00023,2]
[313769366,1707707445884,-6990.47645214,0.00023,2]
[313769367,1707707445895,-1596.50728342,0.00023,2]
[313769368,1707707449821,164.40426451,0.00020699,2]
[313769369,1707707463667,211.99998,0.00021998,2]
[313769370,1707707479650,472.73444147,0.00022156,2]
[313769371,1707707568366,4327.78334112,0.00017247,2]
[313769372,1707707598738,4308.07043994,0.00017247,2]
[313769373,1707707616354,4308.07043994,0.00017247,2]
[313769374,1707707630543,170.3,0.00020403,2]
[313769375,1707707630935,468.02838644,0.00017247,2]
[313769376,1707707636358,4308.07043994,0.00017247,2]
[313769377,1707707652928,468.02838644,0.00017247,2]
[313769378,1707707654361,4308.07043994,0.00017247,2]
[313769379,1707707668931,468.02838644,0.00017247,2]
[313769380,1707707674369,2405.43333054,0.00017247,2]
[313769381,1707707684930,468.02838644,0.00017247,2]
[313769382,1707707720302,468.27357191,0.00017247,2]
[313769383,1707707721480,157.66,0.00022163,10]
[313769384,1707707722119,172.02,0.00022163,2]
[313769385,1707707736902,467.78320097,0.00017247,2]
[313769386,1707707752275,468.02838644,0.00017247,2]
[313769387,1707707765195,334.35,0.00022146,2]
[313769388,1707707772286,284.66833523,0.00017247,2]
[313769389,1707707880422,152.0,0.00021863,4]
[313769390,1707707880757,152.0,0.00021017,3]
[313769391,1707707893836,2000.0,0.00022085,2]
[313769392,1707707909687,378.51813996,0.00025,30]
[313769393,1707707924930,316.62,0.00022103,2]
[313769394,1707707970532,300.0,0.00025,30]
[313769395,1707708107343,161.78,0.00020071,2]
[313769396,1707708107561,161.78,0.00022335,2]
[313769397,1707708143981,478.92,0.00021984,2]
[313769398,1707708181163,200.0,0.00021968,2]
[313769399,1707708225473,157.66,0.0002201,10]
[313769400,1707708231098,732.52,0.00021971,2]
[313769401,1707708437246,263.85,0.00021964,2]
[313769414,1707708565624,153.26,0.00020042,2]
[313769423,1707708633752,-153.26,0.00022431,2]
[313769424,1707708633761,-155.78512393,0.00022432,2]
[313769425,1707708633771,-168.17,0.0002246,2]
[313769426,1707708633781,-67.48187943,0.000225,2]
[313769427,1707708633793,-932.51812057,0.000225,2]
[313769428,1707708633803,-150.0,0.0002252,2]
[313769429,1707708633813,-2309.44013996,0.00022521,2]
[313769430,1707708633833,-866.30438943,0.00022521,2]
[313769431,1707708633846,-450.25,0.00022521,2]
[313769432,1707708633860,-7819.66233733,0.00022521,2]
[313769433,1707708633872,-31784.17930943,0.00022521,2]
[313769434,1707708633882,-8455.21943689,0.00022522,2]
[313769435,1707708633891,-155.78512393,0.00022588,2]
[313769436,1707708633902,-16232.48359535,0.000226,2]
[313769437,1707708633914,-500.63970618,0.000226,2]
[313769438,1707708633945,-350.0,0.000226,2]
[313769439,1707708633957,-817.67329241,0.000226,2]
[313769440,1707708633970,-1343.3056289,0.000226,2]
[313769441,1707708633979,-150.0,0.0002266,2]
[313769442,1707708633989,-499.99,0.00022667,2]
[313769443,1707708633998,-4436.43569025,0.0002269,2]
[313769444,1707708634024,-644.81477819,0.0002269,2]
[313769445,1707708634037,-355.6,0.0002269,2]
[313769446,1707708634048,-842.26534996,0.0002269,2]
[313769447,1707708634060,-377.55697819,0.0002269,2]
[313769448,1707708634072,-610.44814184,0.0002269,2]
[313769449,1707708634084,-979.38,0.0002269,2]
[313769450,1707708634136,-422.84951053,0.0002269,2]
[313769451,1707708634149,-10290.87955104,0.0002269,2]
[313769452,1707708634158,-4595.64,0.00022691,2]
[313769453,1707708634167,-5729.26,0.00022691,2]
[313769454,1707708634177,-11865.45,0.00022691,2]
[313769455,1707708634186,-4110.95,0.00022691,2]
[313769456,1707708634195,-274.04,0.00022691,2]
[313769457,1707708634204,-2819.53,0.00022691,2]
[313769458,1707708634213,-1555.06,0.00022691,2]
[313769459,1707708634223,-152.0,0.00022708,5]
[313769460,1707708634232,-7726.92,0.00022726,2]
[313769461,1707708634241,-155.78512393,0.00022744,2]
[313769462,1707708634251,-800.0,0.00022816,2]
[313769463,1707708634260,-1032.43298049,0.00022898,2]
[313769464,1707708634269,-2416.54413227,0.00022898,2]
[313769465,1707708634344,-1768.42882103,0.00022898,2]
[313769467,1707708634361,-3540.59504822,0.00022898,2]
[313769470,1707708634373,-991.339575,0.00022898,2]
[313769472,1707708634384,-654.59890069,0.00022898,2]
[313769474,1707708634396,-390.72,0.00022898,2]
[313769498,1707708637873,-5082.87735571,0.00022898,2]
[313769501,1707708637901,-1133.29920691,0.00022898,2]
[313769503,1707708637914,-3009.26301564,0.00022898,2]
[313769505,1707708637969,-1010.08450491,0.00022898,2]
[313769506,1707708637981,-5189.94117156,0.00022898,2]
[313769507,1707708638015,-498.18748596,0.00022898,2]
[313769508,1707708638144,-23045.3973821,0.00022898,2]
[313769509,1707708638154,-4849.5967,0.000229,2]
[313769510,1707708638163,-404.72,0.000229,2]
[313769511,1707708638172,-150.0,0.000229,2]
[313769512,1707708638181,-914.17,0.000229,2]
[313769513,1707708638190,-155.78512393,0.000229,2]
[313769514,1707708638199,-838.68,0.000229,2]
[313769515,1707708638208,-150.0,0.000229,2]
[313769516,1707708638217,-311.63,0.000229,2]
[313769517,1707708638226,-150.0,0.000229,2]
[313769518,1707708638235,-1549.53122107,0.000229,2]
[313769519,1707708638244,-524.35441311,0.000229,2]
[313769521,1707708638253,-1383.43470486,0.000229,2]
[313769523,1707708638262,-1232.21069044,0.000229,2]
[313769525,1707708638271,-4051.16271456,0.000229,2]
[313769527,1707708638280,-415.51677108,0.00022998,3]
[313769529,1707708638291,-612.03634912,0.00022998,2]
[313769531,1707708638300,-427.66435784,0.00022998,2]
[313769533,1707708638309,-10017.48618846,0.00022998,2]
[313769535,1707708638318,-2227.58655514,0.00022998,2]
[313769537,1707708638331,-2625.80531791,0.00022998,2]
[313769588,1707708640334,-356.24665133,0.00022998,2]
[313769589,1707708640346,-1444.8451946,0.00022998,2]
[313769590,1707708640355,-10825.13499995,0.00022998,2]
[313769591,1707708640364,-146.9998597,0.00022998,2]
[313769592,1707708640376,-321.51532275,0.00022998,2]
[313769606,1707708642867,-623.40183221,0.000229,2]
[313769607,1707708642976,-995.9349375,0.000229,2]
[313769611,1707708645775,-21087.24323029,0.000229,2]
[313769612,1707708645785,-46855.71650255,0.00022998,2]
[313769613,1707708645794,-1081.8050654,0.00022998,2]
[313769614,1707708645804,-3222.6260139,0.00022998,2]
[313769615,1707708645814,-882.7413513,0.00022998,2]
[313769616,1707708645823,-155.56442382,0.00022998,2]
[313769617,1707708645832,-155.7662312,0.00022998,2]
[313769618,1707708645842,-270.6074957,0.00022998,2]
[313769619,1707708645853,-158.08966468,0.00022998,2]
[313769620,1707708645865,-163.47972683,0.00022998,2]
[313769621,1707708645875,-272.60357087,0.00022998,2]
[313769622,1707708645884,-285.82379523,0.00022998,2]
[313769623,1707708645894,-229.14216418,0.00022998,2]
[313769624,1707708645903,-274.45191543,0.00022998,2]
[313769625,1707708645912,-240.90015327,0.00022998,2]
[313769626,1707708645921,-242.23076286,0.00022998,2]
[313769627,1707708645932,-5433.14796168,0.00022999,2]
[313769628,1707708645941,-833.98225578,0.00022999,2]
[313769629,1707708645950,-6765.26311395,0.00022999,2]
[313769630,1707708645959,-710.66686367,0.00022999,2]
[313769631,1707708645969,-5832.79387738,0.00022999,5]
[313769632,1707708645978,-588.75227926,0.00022999,2]
[313769633,1707708645987,-150.0,0.00022999,2]
[313769634,1707708645996,-150.0,0.00022999,2]
[313769635,1707708646006,-150.0,0.00022999,2]
[313769636,1707708646015,-150.0,0.00022999,2]
[313769637,1707708646024,-150.0,0.00022999,2]
[313769638,1707708646034,-150.0,0.00022999,2]
[313769639,1707708646043,-31948.14056088,0.00023,2]
[313769640,1707708646052,-85530.52553371,0.00023,2]
[313769641,1707708646065,-652.9326512,0.00023,2]
[313769642,1707708646100,-3718.39651435,0.00023,2]
[313769643,1707708646123,-767.21438097,0.00023,2]
[313769644,1707708646134,-1719.1200982,0.00023,2]
[313769683,1707708657255,155.70738914,0.00020698,2]
[313769684,1707708748345,6965.03,0.00022269,2]
[313769685,1707708762758,157.66,0.00022269,10]
[313769686,1707708880089,1000.0,0.00022051,2]
[313769687,1707708908890,172.02,0.00022051,2]
[313769688,1707708968769,400.85,0.00022026,2]
[313769689,1707708981196,161.94,0.00022196,2]
[313769690,1707708996347,156.16864408,0.00022,2]
[313769691,1707709064593,157.52,0.00020134,2]
[313769692,1707709064916,157.52,0.00022398,2]
[313769693,1707709155692,166.32,0.00022004,2]
[313769694,1707709321129,200.0,0.00022026,2]
[313769695,1707709412918,-701.74428445,0.00022417,2]
[313769696,1707709412947,-155.0,0.00022417,2]
[313769697,1707709412975,-155.0,0.00022418,2]
[313769698,1707709413005,-209.0,0.00022427,2]
[313769699,1707709413033,-1000.0,0.000225,2]
[313769700,1707709413060,-1031.8573,0.0002267,2]
[313769701,1707709413092,-1239.0576,0.0002267,2]
[313769702,1707709413126,-159.90967773,0.00022698,2]
[313769703,1707709413157,-646.47648549,0.00022788,2]
[313769704,1707709413188,-500.0,0.00022798,2]
[313769705,1707709413220,-11351.95465233,0.00022798,2]
[313769706,1707709448406,334.04,0.00022252,2]
[313769707,1707709489927,161.94,0.00022349,2]
[313769708,1707709608782,150.53093879,0.00022327,2]
[313769709,1707709662731,157.52,0.00020197,2]
[313769718,1707709831935,-701.74428445,0.00022697,2]
[313769719,1707709831945,-159.90967771,0.00022698,2]
[313769720,1707709831954,-157.52,0.00022727,2]
[313769721,1707709831963,-160.47594634,0.00022798,2]
[313769722,1707709831976,-2034.25707462,0.00022798,2]
[313769723,1707709831992,-901.79132671,0.00022798,2]
[313769724,1707709832002,-477.5276,0.00022798,2]
[313769725,1707709832011,-152.65728579,0.000228,2]
[313769726,1707709832035,-497.48514,0.000228,2]
[313769727,1707709832047,-645.96038553,0.000228,2]
[313769728,1707709832062,-1806.56115686,0.000228,2]
[313769729,1707709832074,-832.37052885,0.000228,2]
[313769730,1707709832086,-1920.68543303,0.000228,2]
[313769731,1707709832098,-2247.56244449,0.000228,2]
[313769732,1707709832109,-1026.39824093,0.000228,2]
[313769733,1707709832122,-652.78451772,0.000228,2]
[313769734,1707709832146,-5375.29786407,0.000228,2]
[313769735,1707709832158,-318.4195,0.000228,2]
[313769736,1707709832170,-19739.26548699,0.000228,2]
[313769737,1707709832179,-200.0,0.00022816,2]
[313769738,1707709832188,-156.07740499,0.00022883,2]
[313769739,1707709832198,-188.42546795,0.00022898,2]
[313769740,1707709832210,-156.42333454,0.00022898,2]
[313769741,1707709832221,-178.4375943,0.00022898,2]
[313769743,1707709832231,-368.46256572,0.00022898,2]
[313769745,1707709832241,-155.78736339,0.00022898,2]
[313769747,1707709832251,-156.60880439,0.00022898,2]
[313769749,1707709832260,-390.0292,0.00022898,2]
[313769751,1707709832269,-195.6307,0.00022898,2]
[313769753,1707709832278,-976.91,0.000229,2]
[313769755,1707709832288,-903.37885792,0.000229,2]
[313769757,1707709832297,-1438.48673559,0.000229,2]
[313769759,1707709832306,-159.90967771,0.000229,2]
[313769761,1707709832315,-2282.45,0.000229,2]
[313769763,1707709832324,-349.56960874,0.000229,2]
[313769764,1707709832333,-556.279332,0.000229,2]
[313769766,1707709832344,-821.47379362,0.000229,2]
[313769768,1707709832353,-800.0,0.00022959,2]
[313769769,1707709832362,-211.88675251,0.0002299,2]
[313769770,1707709832372,-168.20859677,0.00022997,2]
[313769771,1707709832382,-215.59425361,0.00022998,2]
[313769772,1707709832390,-194.5890011,0.00022998,2]
[313769773,1707709832400,-158.52008789,0.00022998,2]
[313769774,1707709832409,-320.66021489,0.00022998,2]
[313769775,1707709832418,-3966.38154237,0.00022998,2]
[313769776,1707709832428,-178.18786544,0.00022998,2]
[313769777,1707709832437,-528.51817102,0.00022998,2]
[313769778,1707709832446,-289.10713379,0.00022998,2]
[313769779,1707709832455,-155.54340237,0.00022998,2]
[313769780,1707709832464,-213.89343666,0.00022998,2]
[313769781,1707709832474,-157.98862469,0.00022998,2]
[313769782,1707709832483,-296.72131859,0.00022998,2]
[313769783,1707709832492,-2157.36892454,0.00022998,2]
[313769784,1707709832502,-2921.24706752,0.00022998,2]
[313769785,1707709832511,-295.24306653,0.00022998,2]
[313769786,1707709832791,-155.82949393,0.00022998,2]
[313769787,1707709832812,-160.56978459,0.00022998,2]
[313769788,1707709832822,-357.21242455,0.00022998,2]
[313769789,1707709832832,-155.45031896,0.00022998,2]
[313769790,1707709832842,-156.29104405,0.00022998,2]
[313769791,1707709832851,-156.17153272,0.00022998,2]
[313769792,1707709832860,-165.01403861,0.00022998,2]
[313769793,1707709832870,-590.11375797,0.00022998,2]
[313769794,1707709832879,-489.00832469,0.00022998,2]
[313769795,1707709832889,-640.24800772,0.00022998,2]
[313769796,1707709832898,-151.0212,0.00022998,3]
[313769797,1707709832908,-151.0212,0.00022998,3]
[313769798,1707709832917,-151.0212,0.00022998,3]
[313769799,1707709832927,-151.0212,0.00022998,3]
[313769800,1707709832936,-151.0212,0.00022998,3]
[313769801,1707709832946,-151.0212,0.00022998,3]
[313769802,1707709832955,-151.0212,0.00022998,3]
[313769803,1707709832965,-151.0212,0.00022998,3]
[313769804,1707709832974,-151.0212,0.00022998,3]
[313769805,1707709832984,-151.0212,0.00022998,3]
[313769806,1707709832994,-151.0212,0.00022998,3]
[313769807,1707709833003,-151.0212,0.00022998,3]
[313769808,1707709833012,-177.0212,0.00022998,3]
[313769809,1707709833022,-171.0212,0.00022998,3]
[313769810,1707709833031,-171.0212,0.00022998,3]
[313769811,1707709833041,-171.0212,0.00022998,3]
[313769812,1707709833050,-171.0212,0.00022998,3]
[313769813,1707709833059,-152.0212,0.00022998,3]
[313769814,1707709833069,-155.26229573,0.00022998,2]
[313769815,1707709833079,-157.35394875,0.00022998,2]
[313769816,1707709833088,-412.97486026,0.00022998,2]
[313769817,1707709833097,-1000.0,0.00022998,2]
[313769818,1707709833107,-1000.0,0.00022998,2]
[313769819,1707709833116,-1000.0,0.00022998,2]
[313769820,1707709833126,-1000.0,0.00022998,2]
[313769821,1707709833136,-1000.0,0.00022998,2]
[313769822,1707709833145,-1000.0,0.00022998,2]
[313769823,1707709833155,-1000.0,0.00022998,2]
[313769824,1707709833169,-1000.0,0.00022998,2]
[313769825,1707709833178,-1000.0,0.00022998,2]
[313769826,1707709833188,-1000.0,0.00022998,2]
[313769827,1707709833198,-1000.0,0.00022998,2]
[313769828,1707709833208,-1000.0,0.00022998,2]
[313769829,1707709833220,-1000.0,0.00022998,2]
[313769830,1707709833230,-1000.0,0.00022998,2]
[313769831,1707709833241,-1000.0,0.00022998,2]
[313769832,1707709833251,-1000.0,0.00022998,2]
[313769833,1707709833261,-1000.0,0.00022998,2]
[313769834,1707709833271,-1019.0,0.00022998,2]
[313769835,1707709833281,-1000.0,0.00022998,2]
[313769836,1707709833291,-1000.0,0.00022998,2]
[313769837,1707709833300,-825.0,0.00022998,2]
[313769838,1707709833310,-156.17176665,0.00022999,2]
[313769839,1707709833320,-250.69122102,0.00022999,2]
[313769840,1707709833329,-155.9994786,0.00022999,2]
[313769841,1707709833338,-266.54313861,0.00022999,2]
[313769842,1707709833347,-1686.36413778,0.00022999,2]
[313769843,1707709833356,-17474.63996746,0.00022999,2]
[313769844,1707709833366,-367.1002321,0.00022999,2]
[313769845,1707709833375,-490.62689938,0.00022999,2]
[313769846,1707709833385,-150.0,0.00022999,2]
[313769847,1707709833394,-150.0,0.00022999,2]
[313769848,1707709833403,-150.0,0.00022999,2]
[313769849,1707709833413,-150.0,0.00022999,2]
[313769850,1707709833422,-150.0,0.00022999,2]
[313769851,1707709833431,-150.0,0.00022999,2]
[313769852,1707709833445,-47596.26701642,0.00023,2]
[313769853,1707709833455,-20218.74103782,0.00023,2]
[313769854,1707709833484,-311.06238185,0.00023,2]
[313769855,1707709833531,-4875.77124708,0.00023,2]
[313769856,1707709833543,-587.07388684,0.00023,2]
[313769872,1707709839588,-411.37961237,0.000229,2]
[313769873,1707709839597,-33917.84967883,0.00023,2]
[313769874,1707709839745,-1811.90215072,0.00023,2]
[313769875,1707709839757,-13786.47381766,0.00023,2]
[313769876,1707709839800,-4597.31938343,0.00023,2]
[313769877,1707709839812,-734.70866164,0.00023,2]
[313769878,1707709839823,-14534.35252226,0.00023,2]
[313769879,1707709839847,-14690.95178769,0.00023,2]
[313769880,1707709839859,-468.50164004,0.00023,2]
[313769881,1707709839990,-32517.0900442,0.00023,2]
[313769882,1707709840002,-112910.42289549,0.00023,2]
[313769883,1707709840013,-2345.38976487,0.00023,2]
[313769884,1707709840025,-9653.42588603,0.00023,2]
[313769885,1707709840052,-1063.303,0.00023,2]
[313769886,1707709840064,-271.708502,0.00023,2]
[313769891,1707709840605,-276.78497004,0.00023,2]
[313769892,1707709840617,-701.66503495,0.00023,2]
[313769893,1707709840629,-1955.33128564,0.00023,2]
[313769894,1707709840640,-282.00747792,0.00023,2]
[313769895,1707709841369,-3983.92,0.00023,2]
[313769896,1707709841538,-522.56356493,0.00023,2]
[313769897,1707709841560,-15173.73015738,0.00023,2]
[313769898,1707709841572,-301.41533684,0.00023,2]
[313769899,1707709841584,-355.93124251,0.00023,2]
[313769974,1707709846103,-27136.66799193,0.00023,2]
[313769975,1707709846216,-918.77681211,0.00023,2]
[313769976,1707709846228,-7068.34006895,0.00023,2]
[313769977,1707709846319,-21991.02760329,0.00023,2]
[313769978,1707709855150,154.54387429,0.00022,2]
[313769979,1707710158215,154.71,0.00020554,2]
[313769980,1707710386168,278.36,0.0002237,2]
[313769981,1707710409056,160.0,0.00022349,2]
[313769982,1707710614375,154.71,0.00020287,2]
[313769983,1707710629691,1367.51,0.00022332,2]
[313769984,1707710865649,231.96,0.00022068,2]
[313769985,1707710903158,872.0,0.00022055,2]
[313770004,1707711032091,-150.0,0.00022552,2]
[313770006,1707711032102,-254.94691351,0.000226,2]
[313770007,1707711032111,-45.05308649,0.00022644,3]
[313770013,1707711032254,-106.94691351,0.00022644,3]
[313770014,1707711032264,-1000.0,0.000227,2]
[313770015,1707711032273,-805.9680718,0.000227,2]
[313770016,1707711032286,-194.0319282,0.000227,2]
[313770017,1707711032295,-400.495487,0.00022753,2]
[313770018,1707711032325,-1337.504513,0.00022753,2]
[313770019,1707711032334,-150.0,0.00022768,2]
[313770020,1707711032344,-704.62656724,0.00022798,2]
[313770025,1707711032580,-1003.30335493,0.00022798,2]
[313770026,1707711032596,-433.59794111,0.00022798,2]
[313770029,1707711032620,-772.52116168,0.00022798,2]
[313770031,1707711032632,-544.99739025,0.00022798,2]
[313770033,1707711032734,-321.16565532,0.00022798,2]
[313770034,1707711032759,-2657.95491868,0.00022798,2]
[313770037,1707711038132,-732.0470105,0.00022798,2]
[313770038,1707711038143,-741.27723955,0.00022798,2]
[313770039,1707711038155,-420.8888349,0.00022798,2]
[313770040,1707711038167,-313.89851893,0.00022798,2]
[313770041,1707711038196,-420.81919516,0.00022798,2]
[313770042,1707711039315,-1486.027098,0.00022798,2]
[313770043,1707711039400,-20034.56198661,0.00022798,2]
[313770044,1707711039521,-2874.17662714,0.00022798,2]
[313770045,1707711039531,-2360.07207094,0.000228,2]
[313770046,1707711039541,-200.0,0.00022816,2]